fUSD/lending_fUSD_20250904
["ID","MTS","AMOUNT","RATE_DAILY","PERIOD"]
[383488057,1756957899083,-400.0,0.00022739,2]
[383488058,1756957899093,-400.0,0.00022739,2]
[383488059,1756957899103,-400.0,0.00022739,2]
[383488060,1756957899112,-408.02,0.00022739,2]
[383488061,1756957899122,-400.0,0.00022739,2]
[383488062,1756957899132,-400.0,0.00022739,2]
[383488063,1756957899142,-402.16660512,0.00022739,2]
[383488064,1756957899151,-411.638359,0.00022739,2]
[383488065,1756957899161,-400.0,0.00022739,2]
[383488066,1756957899171,-1345.88,0.00022739,2]
[383488067,1756957899181,-400.0,0.00022739,2]
[383488068,1756957899190,-400.0,0.00022739,2]
[383488069,1756957899200,-400.0,0.00022739,2]
[383488070,1756957899210,-407.42509718,0.00022739,2]
[383488071,1756957899220,-400.0,0.00022739,2]
[383488072,1756957899231,-400.0,0.00022739,2]
[383488073,1756957899242,-400.0,0.00022739,2]
[383488074,1756957899252,-400.0,0.00022739,2]
[383488075,1756957899262,-1946.25,0.00022739,2]
[383488076,1756957899271,-405.17831141,0.00022739,2]
[383488077,1756957899281,-400.0,0.00022739,2]
[383488078,1756957899290,-217.14313948,0.00022739,2]
[383488079,1756957899299,-400.0,0.00022739,2]
[383488080,1756957899308,-400.0,0.00022739,2]
[383488081,1756957899318,-1651.86,0.00022739,2]
[383488082,1756957899327,-400.0,0.00022739,2]
[383488083,1756957899337,-400.0,0.00022739,2]
[383488084,1756957899346,-400.0,0.00022739,2]
[383488085,1756957899356,-1617.94,0.00022739,2]
[383488086,1756957899366,-400.0,0.00022739,2]
[383488087,1756957899375,-400.0,0.00022739,2]
[383488088,1756957899385,-746.86,0.00022739,2]
[383488089,1756957899394,-400.0,0.00022739,2]
[383488090,1756957899403,-400.0,0.00022739,2]
[383488091,1756957899412,-400.0,0.00022739,2]
[383488092,1756957899422,-1000.0,0.00022739,2]
[383488093,1756957899432,-400.0,0.00022739,2]
[383488094,1756957899442,-400.0,0.00022739,2]
[383488095,1756957899452,-400.0,0.00022739,2]
[383488096,1756957899462,-400.0,0.00022739,2]
[383488097,1756957899471,-400.0,0.00022739,2]
[383488098,1756957899481,-400.0,0.00022739,2]
[383488099,1756957899492,-449.64,0.00022739,2]
[383488100,1756957899502,-400.0,0.00022739,2]
[383488101,1756957899512,-414.81126551,0.00022739,2]
[383488102,1756957899521,-400.0,0.00022739,2]
[383488103,1756957899532,-657.88,0.00022739,2]
[383488104,1756957899544,-400.0,0.00022739,2]
[383488105,1756957899554,-400.0,0.00022739,2]
[383488106,1756957899564,-400.0,0.00022739,2]
[383488107,1756957899573,-400.0,0.00022739,2]
[383488108,1756957899583,-400.0,0.00022739,2]
[383488109,1756957899592,-400.0,0.00022739,2]
[383488110,1756957899602,-400.0,0.00022739,2]
[383488111,1756957899612,-404.5671319,0.00022739,2]
[383488112,1756957899623,-400.0,0.00022739,2]
[383488113,1756957899632,-400.0,0.00022739,2]
[383488114,1756957899641,-400.0,0.00022739,2]
[383488115,1756957899652,-406.39338825,0.00022739,2]
[383488116,1756957899662,-400.0,0.00022739,2]
[383488117,1756957899672,-400.0,0.00022739,2]
[383488118,1756957899682,-400.0,0.00022739,2]
[383488119,1756957899691,-400.0,0.00022739,2]
[383488120,1756957899701,-400.0,0.00022739,2]
[383488121,1756957899711,-400.0,0.00022739,2]
[383488122,1756957899721,-400.0,0.00022739,2]
[383488123,1756957899731,-457.34,0.00022739,2]
[383488124,1756957899741,-400.0,0.00022739,2]
[383488125,1756957899751,-400.0,0.00022739,2]
[383488126,1756957899762,-400.0,0.00022739,2]
[383488127,1756957899772,-400.0,0.00022739,2]
[383488128,1756957899781,-400.0,0.00022739,2]
[383488129,1756957899791,-400.0,0.00022739,2]
[383488130,1756957899801,-400.0,0.00022739,2]
[383488131,1756957899811,-400.0,0.00022739,2]
[383488132,1756957899820,-407.78809572,0.00022739,2]
[383488133,1756957899917,-499.14454027,0.00022739,2]
[383488134,1756957899931,-400.0,0.00022739,2]
[383488135,1756957899943,-400.0,0.00022739,2]
[383488136,1756957899955,-400.0,0.00022739,2]
[383488137,1756957899964,-400.0,0.00022739,2]
[383488138,1756957899973,-400.0,0.00022739,2]
[383488139,1756957899983,-400.0,0.00022739,2]
[383488140,1756957899995,-400.0,0.00022739,2]
[383488141,1756957900007,-400.0,0.00022739,2]
[383488142,1756957900017,-400.0,0.00022739,2]
[383488143,1756957900027,-400.0,0.00022739,2]
[383488144,1756957900037,-400.0,0.00022739,2]
[383488145,1756957900047,-2851.02,0.00022739,2]
[383488146,1756957900058,-400.0,0.00022739,2]
[383488147,1756957900068,-400.0,0.00022739,2]
[383488148,1756957900079,-827.27,0.00022739,2]
[383488149,1756957900089,-400.0,0.00022739,2]
[383488150,1756957900098,-403.77,0.00022739,2]
[383488151,1756957900108,-400.0,0.00022739,2]
[383488152,1756957900118,-400.0,0.00022739,2]
[383488153,1756957900127,-400.0,0.00022739,2]
[383488154,1756957900137,-1556.07,0.00022739,2]
[383488155,1756957900148,-400.0,0.00022739,2]
[383488156,1756957900158,-2172.38,0.00022739,2]
[383488157,1756957900168,-400.0,0.00022739,2]
[383488158,1756957900177,-150.0,0.00022739,2]
[383488159,1756957900187,-400.0,0.00022739,2]
[383488160,1756957900197,-400.0,0.00022739,2]
[383488161,1756957900206,-400.0,0.00022739,2]
[383488162,1756957900215,-400.0,0.00022739,2]
[383488163,1756957900226,-406.18073322,0.00022739,2]
[383488164,1756957900236,-400.0,0.00022739,2]
[383488165,1756957900246,-400.0,0.00022739,2]
[383488166,1756957900255,-400.0,0.00022739,2]
[383488167,1756957900265,-400.0,0.00022739,2]
[383488168,1756957900274,-400.0,0.00022739,2]
[383488169,1756957900284,-400.0,0.00022739,2]
[383488170,1756957900294,-400.0,0.00022739,2]
[383488171,1756957900303,-400.0,0.00022739,2]
[383488172,1756957900312,-400.0,0.00022739,2]
[383488173,1756957900322,-400.0,0.00022739,2]
[383488174,1756957900331,-10953.80541891,0.00022739,2]
[383488175,1756957900342,-486.02,0.00022739,2]
[383488176,1756957900353,-525.8,0.00022739,2]
[383488177,1756957900363,-400.0,0.00022739,2]
[383488178,1756957900372,-400.0,0.00022739,2]
[383488179,1756957900382,-400.0,0.00022739,2]
[383488180,1756957900391,-400.0,0.00022739,2]
[383488181,1756957900401,-400.0,0.00022739,2]
[383488182,1756957900410,-400.0,0.00022739,2]
[383488183,1756957900421,-400.0,0.00022739,2]
[383488184,1756957900431,-400.0,0.00022739,2]
[383488185,1756957900441,-400.0,0.00022739,2]
[383488186,1756957900451,-400.0,0.00022739,2]
[383488187,1756957900461,-514.55,0.00022739,2]
[383488188,1756957900470,-400.0,0.00022739,2]
[383488189,1756957900479,-400.0,0.00022739,2]
[383488190,1756957900491,-400.0,0.00022739,2]
[383488191,1756957900502,-525.3,0.00022739,2]
[383488192,1756957900514,-400.0,0.00022739,2]
[383488193,1756957900523,-445.57,0.00022739,2]
[383488194,1756957900532,-400.0,0.00022739,2]
[383488195,1756957900542,-474.01,0.00022739,2]
[383488196,1756957900551,-400.0,0.00022739,2]
[383488197,1756957900562,-400.0,0.00022739,2]
[383488198,1756957900571,-400.0,0.00022739,2]
[383488199,1756957900580,-400.0,0.00022739,2]
[383488200,1756957900590,-400.0,0.00022739,2]
[383488201,1756957900599,-473.21,0.00022739,2]
[383488202,1756957900610,-400.0,0.00022739,2]
[383488203,1756957900621,-403.18934178,0.00022739,2]
[383488204,1756957900631,-400.0,0.00022739,2]
[383488205,1756957900643,-400.0,0.00022739,2]
[383488206,1756957900652,-419.22,0.00022739,2]
[383488207,1756957900662,-400.0,0.00022739,2]
[383488208,1756957900671,-392.9712803,0.00022739,2]
[383488209,1756957900681,-518.98,0.00022739,2]
[383488210,1756957900690,-400.0,0.00022739,2]
[383488211,1756957900700,-400.0,0.00022739,2]
[383488212,1756957900710,-400.0,0.00022739,2]
[383488213,1756957900720,-400.0,0.00022739,2]
[383488214,1756957900730,-400.0,0.00022739,2]
[383488215,1756957900740,-289.88118331,0.00022739,2]
[383488216,1756957900751,-400.0,0.00022739,2]
[383488217,1756957900761,-400.0,0.00022739,2]
[383488218,1756957900771,-400.0,0.00022739,2]
[383488219,1756957900781,-400.0,0.00022739,2]
[383488220,1756957900791,-400.0,0.00022739,2]
[383488221,1756957900801,-405.39771671,0.00022739,2]
[383488222,1756957900811,-400.0,0.00022739,2]
[383488223,1756957900821,-400.0,0.00022739,2]
[383488224,1756957900831,-400.0,0.00022739,2]
[383488225,1756957900841,-400.0,0.00022739,2]
[383488226,1756957900854,-403.33,0.00022739,2]
[383488227,1756957900864,-400.0,0.00022739,2]
[383488228,1756957900874,-406.0,0.00022739,2]
[383488229,1756957900884,-419.62720028,0.00022739,2]
[383488230,1756957900894,-400.0,0.00022739,2]
[383488231,1756957900904,-400.0,0.00022739,2]
[383488232,1756957900914,-400.0,0.00022739,2]
[383488233,1756957900925,-400.0,0.00022739,2]
[383488234,1756957900935,-400.0,0.00022739,2]
[383488235,1756957900945,-405.53,0.00022739,2]
[383488236,1756957900956,-400.0,0.00022739,2]
[383488237,1756957900966,-2430.87,0.00022739,2]
[383488238,1756957900976,-400.0,0.00022739,2]
[383488239,1756957900986,-400.0,0.00022739,2]
[383488240,1756957900996,-1658.24,0.00022739,2]
[383488241,1756957901007,-400.0,0.00022739,2]
[383488242,1756957901016,-400.0,0.00022739,2]
[383488243,1756957901026,-429.64,0.00022739,2]
[383488244,1756957901036,-400.0,0.00022739,2]
[383488245,1756957901046,-400.0,0.00022739,2]
[383488246,1756957901056,-400.0,0.00022739,2]
[383488247,1756957901066,-778.2,0.00022739,2]
[383488248,1756957901076,-400.0,0.00022739,2]
[383488249,1756957901087,-403.44984759,0.00022739,2]
[383488250,1756957901097,-400.0,0.00022739,2]
[383488251,1756957901107,-400.0,0.00022739,2]
[383488252,1756957901117,-400.0,0.00022739,2]
[383488253,1756957901127,-400.0,0.00022739,2]
[383488254,1756957901137,-400.0,0.00022739,2]
[383488255,1756957901147,-652.71,0.00022739,2]
[383488256,1756957901156,-400.0,0.00022739,2]
[383488257,1756957901166,-400.0,0.00022739,2]
[383488258,1756957901176,-400.0,0.00022739,2]
[383488259,1756957901186,-194.07420283,0.00022739,2]
[383488260,1756957901196,-400.0,0.00022739,2]
[383488261,1756957901206,-400.0,0.00022739,2]
[383488262,1756957901216,-415.38,0.00022739,2]
[383488263,1756957901226,-400.0,0.00022739,2]
[383488264,1756957901235,-400.0,0.00022739,2]
[383488265,1756957901245,-400.0,0.00022739,2]
[383488266,1756957901254,-1295.76,0.00022739,2]
[383488267,1756957901264,-400.0,0.00022739,2]
[383488268,1756957901274,-400.0,0.00022739,2]
[383488269,1756957901284,-803.28,0.00022739,2]
[383488270,1756957901294,-400.0,0.00022739,2]
[383488271,1756957901304,-400.0,0.00022739,2]
[383488272,1756957901314,-400.0,0.00022739,2]
[383488273,1756957901324,-400.0,0.00022739,2]
[383488274,1756957901334,-400.0,0.00022739,2]
[383488275,1756957901344,-158.38288038,0.00022739,2]
[383488276,1756957901354,-400.0,0.00022739,2]
[383488277,1756957901364,-2004.44,0.00022739,2]
[383488278,1756957901374,-400.0,0.00022739,2]
[383488279,1756957901384,-400.0,0.00022739,2]
[383488280,1756957901394,-664.86,0.00022739,2]
[383488281,1756957901404,-400.0,0.00022739,2]
[383488282,1756957901414,-400.0,0.00022739,2]
[383488283,1756957901423,-400.0,0.00022739,2]
[383488284,1756957901433,-400.0,0.00022739,2]
[383488285,1756957901444,-400.0,0.00022739,2]
[383488286,1756957901453,-540.4254809,0.00022739,2]
[383488287,1756957901463,-407.95660939,0.00022739,2]
[383488288,1756957901473,-400.0,0.00022739,2]
[383488289,1756957901483,-400.0,0.00022739,2]
[383488290,1756957901493,-400.0,0.00022739,2]
[383488291,1756957901504,-400.0,0.00022739,2]
[383488292,1756957901514,-1580.62,0.00022739,2]
[383488293,1756957901523,-400.0,0.00022739,2]
[383488294,1756957901531,-400.0,0.00022739,2]
[383488295,1756957901540,-400.0,0.00022739,2]
[383488296,1756957901549,-400.0,0.00022739,2]
[383488297,1756957901558,-400.0,0.00022739,2]
[383488298,1756957901566,-402.53,0.00022739,2]
[383488299,1756957901575,-1015.23366924,0.00022739,2]
[383488300,1756957901585,-400.0,0.00022739,2]
[383488301,1756957901593,-400.0,0.00022739,2]
[383488302,1756957901602,-3142.11,0.00022739,2]
[383488303,1756957901611,-400.0,0.00022739,2]
[383488304,1756957901619,-400.0,0.00022739,2]
[383488305,1756957901629,-400.0,0.00022739,2]
[383488306,1756957901639,-400.0,0.00022739,2]
[383488307,1756957901651,-400.0,0.00022739,2]
[383488308,1756957901661,-400.0,0.00022739,2]
[383488309,1756957901670,-300.75718261,0.00022739,2]
[383488310,1756957901680,-400.0,0.00022739,2]
[383488311,1756957901690,-400.0,0.00022739,2]
[383488312,1756957901700,-400.0,0.00022739,2]
[383488313,1756957901710,-400.0,0.00022739,2]
[383488314,1756957901721,-400.0,0.00022739,2]
[383488315,1756957901731,-400.0,0.00022739,2]
[383488316,1756957901740,-400.0,0.00022739,2]
[383488317,1756957901751,-402.71864348,0.00022739,2]
[383488318,1756957901761,-400.0,0.00022739,2]
[383488319,1756957901771,-684.19,0.00022739,2]
[383488320,1756957901781,-400.0,0.00022739,2]
[383488321,1756957901791,-400.0,0.00022739,2]
[383488322,1756957901801,-400.0,0.00022739,2]
[383488323,1756957901811,-400.0,0.00022739,2]
[383488324,1756957901823,-400.0,0.00022739,2]
[383488325,1756957901834,-400.0,0.00022739,2]
[383488326,1756957901847,-400.0,0.00022739,2]
[383488327,1756957901858,-400.0,0.00022739,2]
[383488328,1756957901868,-400.0,0.00022739,2]
[383488329,1756957901879,-400.0,0.00022739,2]
[383488330,1756957901888,-575.44,0.00022739,2]
[383488331,1756957901898,-409.03739592,0.00022739,2]
[383488332,1756957901908,-275.41741184,0.00022739,2]
[383488333,1756957901918,-2962.71,0.00022739,2]
[383488334,1756957901928,-400.0,0.00022739,2]
[383488335,1756957901938,-430.36040411,0.00022739,2]
[383488336,1756957901948,-419.2,0.00022739,2]
[383488337,1756957901958,-400.0,0.00022739,2]
[383488338,1756957901968,-400.0,0.00022739,2]
[383488339,1756957901979,-400.0,0.00022739,2]
[383488340,1756957901989,-400.0,0.00022739,2]
[383488341,1756957901999,-400.0,0.00022739,2]
[383488342,1756957902009,-400.0,0.00022739,2]
[383488343,1756957902018,-301.82,0.0002274,2]
[383488344,1756957902028,-656.0,0.00022741,2]
[383488345,1756957902038,-350.0,0.00022741,2]
[383488346,1756957902048,-500.0,0.00022741,2]
[383488347,1756957902058,-468.0,0.00022741,2]
[383488348,1756957902068,-500.0,0.00022741,2]
[383488349,1756957902078,-500.0,0.00022741,2]
[383488350,1756957902089,-452.0,0.00022741,2]
[383488351,1756957902100,-500.0,0.00022741,2]
[383488352,1756957902110,-1086.0,0.0002278,2]
[383488353,1756957902130,-249.071,0.00022785,2]
[383488354,1756957902142,-196.142,0.00022785,2]
[383488355,1756957902152,-196.575,0.00022785,2]
[383488356,1756957902162,-151.088,0.00022785,2]
[383488357,1756957902171,-150.0,0.00022785,2]
[383488358,1756957902181,-186.807,0.00022785,2]
[383488359,1756957902191,-205.558,0.00022785,2]
[383488360,1756957902202,-255.912,0.00022785,2]
[383488361,1756957902211,-207.555,0.00022785,2]
[383488362,1756957902221,-160.342,0.00022785,2]
[383488363,1756957902231,-210.869,0.00022785,2]
[383488364,1756957902240,-155.0,0.00022785,2]
[383488365,1756957902250,-1000.0,0.00022808,2]
[383488366,1756957902259,-2600.0,0.00022808,2]
[383488367,1756957902269,-866.0,0.0002285,2]
[383488368,1756957902278,-262.5,0.0002286,15]
[383488369,1756957902289,-5399.0,0.00022869,2]
[383488370,1756957902298,-306.54,0.00022877,2]
[383488371,1756957902308,-656.0,0.00022878,2]
[383488372,1756957902319,-500.0,0.00022878,2]
[383488373,1756957902329,-468.0,0.00022878,2]
[383488374,1756957902339,-500.0,0.00022878,2]
[383488375,1756957902349,-500.0,0.00022878,2]
[383488376,1756957902359,-452.0,0.00022878,2]
[383488377,1756957902369,-500.0,0.00022878,2]
[383488378,1756957902379,-477.4652599,0.00022883,2]
[383488379,1756957902389,-246.6180971,0.00022884,2]
[383488380,1756957902398,-215.0,0.0002289,2]
[383488381,1756957902408,-214.0,0.0002289,2]
[383488382,1756957902418,-152.0,0.00022895,3]
[383488383,1756957902427,-500.0,0.00022899,2]
[383488384,1756957902438,-5600.0,0.000229,8]
[383488385,1756957902448,-8615.6569507,0.00022997,2]
[383488386,1756957902460,-4000.0,0.00023,4]
[383488387,1756957902470,-621.34803675,0.00023,7]
[383488388,1756957902480,-431.25493601,0.00023,2]
[383488389,1756957902490,-165.0,0.00023,5]
[383488390,1756957902500,-503.01,0.00023,7]
[383488391,1756957902510,-500.0,0.00023,3]
[383488392,1756957902520,-100000.0,0.00023,2]
[383488393,1756957902529,-530.0,0.00023,7]
[383488394,1756957902539,-729.86,0.00023011,2]
[383488395,1756957902549,-400.0,0.00023012,2]
[383488396,1756957902559,-400.0,0.00023012,2]
[383488397,1756957902569,-400.0,0.00023012,2]
[383488398,1756957902579,-407.92738523,0.00023012,2]
[383488399,1756957902588,-400.0,0.00023012,2]
[383488400,1756957902598,-400.0,0.00023012,2]
[383488401,1756957902608,-400.0,0.00023012,2]
[383488402,1756957902782,-400.0,0.00023012,2]
[383488403,1756957902803,-400.0,0.00023012,2]
[383488404,1756957902812,-400.0,0.00023012,2]
[383488405,1756957902822,-400.0,0.00023012,2]
[383488406,1756957902831,-400.0,0.00023012,2]
[383488407,1756957902841,-400.0,0.00023012,2]
[383488408,1756957902855,-400.0,0.00023012,2]
[383488409,1756957902864,-400.0,0.00023012,2]
[383488410,1756957902874,-400.0,0.00023012,2]
[383488411,1756957902884,-400.0,0.00023012,2]
[383488412,1756957902894,-412.801979,0.00023012,2]
[383488413,1756957902904,-400.0,0.00023012,2]
[383488414,1756957902913,-400.0,0.00023012,2]
[383488415,1756957902923,-400.0,0.00023012,2]
[383488416,1756957902933,-400.0,0.00023012,2]
[383488417,1756957902943,-400.0,0.00023012,2]
[383488418,1756957902953,-400.0,0.00023012,2]
[383488419,1756957902962,-210.80210934,0.00023012,2]
[383488420,1756957902972,-400.0,0.00023012,2]
[383488421,1756957902982,-400.0,0.00023012,2]
[383488422,1756957902991,-410.03104313,0.00023012,2]
[383488423,1756957903001,-400.0,0.00023012,2]
[383488424,1756957903011,-729.86,0.00023012,2]
[383488425,1756957903021,-400.0,0.00023012,2]
[383488426,1756957903030,-367.71065495,0.00023012,2]
[383488427,1756957903039,-400.0,0.00023012,2]
[383488428,1756957903049,-400.0,0.00023012,2]
[383488429,1756957903058,-400.0,0.00023012,2]
[383488430,1756957903067,-400.0,0.00023012,2]
[383488431,1756957903077,-400.0,0.00023012,2]
[383488432,1756957903086,-500.0,0.00023012,2]
[383488433,1756957903098,-400.0,0.00023013,2]
[383488434,1756957903108,-400.0,0.00023013,2]
[383488435,1756957903118,-697.0252,0.00023013,2]
[383488436,1756957903128,-697.0252,0.00023013,2]
[383488437,1756957903137,-697.0252,0.00023013,2]
[383488438,1756957903147,-697.0252,0.00023013,2]
[383488439,1756957903157,-697.0252,0.00023013,2]
[383488440,1756957903167,-697.0252,0.00023013,2]
[383488441,1756957903176,-697.0252,0.00023013,2]
[383488442,1756957903185,-697.0252,0.00023013,2]
[383488443,1756957903195,-697.0252,0.00023013,2]
[383488444,1756957903204,-697.0252,0.00023013,2]
[383488445,1756957903214,-697.0252,0.00023013,2]
[383488446,1756957903224,-697.0252,0.00023013,2]
[383488447,1756957903233,-697.0252,0.00023013,2]
[383488448,1756957903244,-697.0252,0.00023013,2]
[383488449,1756957903253,-697.0252,0.00023013,2]
[383488450,1756957903263,-697.0252,0.00023013,2]
[383488451,1756957903272,-697.0252,0.00023013,2]
[383488452,1756957903281,-697.0252,0.00023013,2]
[383488453,1756957903291,-697.0252,0.00023013,2]
[383488454,1756957903300,-697.0252,0.00023013,2]
[383488455,1756957903309,-400.0,0.00023013,2]
[383488456,1756957903318,-151.927727,0.00023013,2]
[383488457,1756957903327,-400.0,0.00023013,2]
[383488458,1756957903336,-400.0,0.00023013,2]
[383488459,1756957903346,-176.568697,0.00023013,2]
[383488460,1756957903355,-400.0,0.00023013,2]
[383488461,1756957903364,-400.0,0.00023013,2]
[383488462,1756957903373,-400.0,0.00023013,2]
[383488463,1756957903383,-400.0,0.00023013,2]
[383488464,1756957903392,-400.0,0.00023013,2]
[383488465,1756957903401,-400.0,0.00023013,2]
[383488466,1756957903410,-400.0,0.00023013,2]
[383488467,1756957903419,-400.0,0.00023013,2]
[383488468,1756957903429,-400.0,0.00023013,2]
[383488469,1756957903438,-400.0,0.00023013,2]
[383488470,1756957903447,-400.0,0.00023013,2]
[383488471,1756957903457,-472.05812293,0.00023013,2]
[383488472,1756957903466,-400.0,0.00023013,2]
[383488473,1756957903475,-400.0,0.00023013,2]
[383488474,1756957903484,-400.0,0.00023013,2]
[383488475,1756957903494,-400.0,0.00023013,2]
[383488476,1756957903503,-400.0,0.00023013,2]
[383488477,1756957903512,-400.0,0.00023013,2]
[383488478,1756957903522,-400.0,0.00023013,2]
[383488479,1756957903531,-400.0,0.00023013,2]
[383488480,1756957903541,-374.23650497,0.00023013,2]
[383488481,1756957903551,-400.0,0.00023013,2]
[383488482,1756957903560,-409.61149223,0.00023013,2]
[383488483,1756957903569,-400.0,0.00023013,2]
[383488484,1756957903579,-400.0,0.00023013,2]
[383488485,1756957903588,-400.0,0.00023013,2]
[383488486,1756957903598,-400.0,0.00023013,2]
[383488487,1756957903608,-408.93175435,0.00023013,2]
[383488488,1756957903617,-400.0,0.00023013,2]
[383488489,1756957903627,-400.0,0.00023013,2]
[383488490,1756957903638,-400.0,0.00023013,2]
[383488491,1756957903647,-400.0,0.00023013,2]
[383488492,1756957903657,-424.88,0.00023013,2]
[383488493,1756957903666,-400.0,0.00023013,2]
[383488494,1756957903675,-400.0,0.00023013,2]
[383488495,1756957903684,-410.20046508,0.00023013,2]
[383488496,1756957903693,-400.0,0.00023013,2]
[383488497,1756957903703,-211.78115474,0.00023013,2]
[383488498,1756957903712,-400.0,0.00023013,2]
[383488499,1756957903722,-400.0,0.00023013,2]
[383488500,1756957903732,-417.57590779,0.00023013,2]
[383488501,1756957903742,-407.51631654,0.00023013,2]
[383488502,1756957903751,-404.75074455,0.00023013,2]
[383488503,1756957903761,-400.0,0.00023013,2]
[383488504,1756957903771,-400.0,0.00023013,2]
[383488505,1756957903780,-400.0,0.00023013,2]
[383488506,1756957903789,-400.0,0.00023013,2]
[383488507,1756957903799,-400.0,0.00023013,2]
[383488508,1756957903808,-400.0,0.00023013,2]
[383488509,1756957903817,-400.0,0.00023013,2]
[383488510,1756957903827,-418.16,0.00023013,2]
[383488511,1756957903837,-400.0,0.00023013,2]
[383488512,1756957903848,-400.0,0.00023013,2]
[383488513,1756957903858,-454.46,0.00023013,2]
[383488514,1756957903867,-400.0,0.00023013,2]
[383488515,1756957903878,-400.0,0.00023013,2]
[383488516,1756957903887,-400.0,0.00023013,2]
[383488517,1756957903898,-469.0,0.00023013,2]
[383488518,1756957903907,-400.0,0.00023013,2]
[383488519,1756957903918,-404.71581199,0.00023013,2]
[383488520,1756957903930,-400.0,0.00023013,2]
[383488521,1756957903941,-400.0,0.00023013,2]
[383488522,1756957903950,-400.0,0.00023013,2]
[383488523,1756957903959,-400.0,0.00023013,2]
[383488524,1756957903969,-400.0,0.00023013,2]
[383488525,1756957903979,-400.0,0.00023013,2]
[383488526,1756957903989,-400.0,0.00023013,2]
[383488527,1756957903998,-557.54,0.00023013,2]
[383488528,1756957904007,-404.10916175,0.00023013,2]
[383488529,1756957904017,-400.0,0.00023013,2]
[383488530,1756957904027,-400.0,0.00023013,2]
[383488531,1756957904036,-400.0,0.00023013,2]
[383488532,1756957904047,-400.0,0.00023013,2]
[383488533,1756957904056,-400.0,0.00023013,2]
[383488534,1756957904066,-400.0,0.00023013,2]
[383488535,1756957904075,-400.0,0.00023013,2]
[383488536,1756957904085,-400.0,0.00023013,2]
[383488537,1756957904094,-709.34,0.00023013,2]
[383488538,1756957904103,-400.0,0.00023013,2]
[383488539,1756957904114,-400.0,0.00023013,2]
[383488540,1756957904123,-400.0,0.00023013,2]
[383488541,1756957904133,-400.0,0.00023013,2]
[383488542,1756957904143,-400.0,0.00023013,2]
[383488543,1756957904152,-400.0,0.00023013,2]
[383488544,1756957904161,-400.0,0.00023013,2]
[383488545,1756957904172,-400.0,0.00023013,2]
[383488546,1756957904181,-184.31061221,0.00023013,2]
[383488547,1756957904191,-400.0,0.00023013,2]
[383488548,1756957904200,-400.0,0.00023013,2]
[383488549,1756957904209,-400.0,0.00023013,2]
[383488550,1756957904219,-410.254878,0.00023013,2]
[383488551,1756957904229,-400.0,0.00023013,2]
[383488552,1756957904240,-400.0,0.00023013,2]
[383488553,1756957904252,-400.0,0.00023013,2]
[383488554,1756957904261,-400.0,0.00023013,2]
[383488555,1756957904271,-400.0,0.00023013,2]
[383488556,1756957904281,-400.0,0.00023013,2]